{"text_format":"1","workbook":"xlsx","n_sheets":7,"sheets":["سند قبض","عام","بيان بالاشتراكات المستحقه","حساب تفصيلى لمشترك","الرئيسيه","العملاء","تقرير"],"not_rendered":{"charts":0,"images":5,"macros":1,"external_links":0,"defined_names":3,"comments":1,"pivot_tables":0},"unopened":[],"bounds":{"document_bytes":16777216,"sheet_cells":100000,"rows_first":2000,"rows_last":500,"rows_between":2000,"halvings":0,"cell_chars":16384,"cell_head_chars":4096},"cells_cut":0,"cells_raw":0,"read":"whole","date_system":"1900"}

{"sheet":"سند قبض","index":0,"n_rows":57,"n_cols":9,"rows_kept":57,"cut":false,"hidden":false,"merged":[[9,6,9,7],[10,6,10,7],[11,6,11,7],[12,0,12,1],[3,4,3,5],[6,0,6,5],[24,0,24,1],[25,0,25,2],[26,1,26,4],[27,1,27,2],[27,3,27,5],[14,1,14,4],[15,1,15,2],[15,3,15,5],[16,2,16,5],[17,1,17,5],[28,2,28,5],[13,0,13,2],[49,2,49,4],[5,1,5,5],[0,0,0,1],[2,1,2,2],[4,2,4,5],[40,2,40,5],[41,1,41,5],[29,1,29,5],[36,0,36,1],[37,0,37,2],[38,1,38,4],[39,1,39,2],[39,3,39,5],[3,1,3,3]]}
["شركةالنورلخدمات الكمبيوتروالانترنت",null,null,{"$f":"MAX(عام!V1:V99995)","v":0},"التاريخ :",{"$f":"NOW()","v":"2022-01-01T00:09:32.990"}]
["التاريخ /",null,null,"سند قبض نقدى",{"$f":"MAX(عام!L3:L100002)+1","v":12},{"$f":"MAX(عام!L2:L99995)+1","v":12}]
["اسـتلـمنا نحن /","شركةالنورلخدمات الكمبيوتروالانترنت",null,"خزينة الادارة"]
["من  السيد/","س",null,null,null,null,"طباعه سند قبض"]
["   مبلغ وقدرة /  ",{"$f":"IFERROR(VLOOKUP(B4,العملاء!B4:J10000,6,0),0)","v":0},{"$f":"tafket(B5,\"جنيه\",\"قرش\")","v":{"$error":"#NAME?"}}]
["وذلك قيمة    /"]
["بيانات العميل"]
["اسم العميل","الرقم الارضى","رقم المحمول","نوع الخدمه المقدمه","تاريخ بداية الخدمه","تاريخ انتهاء الخدمه"]
[{"$f":"B4","v":"س"},{"$f":"IFERROR(VLOOKUP(A9,العملاء!B4:J10000,2,0),\"\")","v":""},{"$f":"IFERROR(VLOOKUP(A9,العملاء!B4:J10000,3,0),\"\")","v":""},{"$f":"IFERROR(VLOOKUP(A9,العملاء!B4:J10000,4,0),\"\")","v":""},{"$f":"IFERROR(IF(COUNTIF(تقرير!C3:C1000,B4)=1,VLOOKUP(B4,تقرير!C3:H10000,6,0),VLOOKUP(A9,العملاء!B4:J10000,7,0)),\"\")","v":""},{"$f":"IF(E9=\"\",\"\",E9+30)","v":""}]
[null,null,null,null,"المستلم /"]
[null,null,null,null,"التوقيع /"]
[null,null,null,null,null,"اصل"]
[{"$f":"A1","v":"شركةالنورلخدمات الكمبيوتروالانترنت"},null,null,null,"التاريخ :",{"$f":"B2","v":"00:00:00"}]
[null,null,null,{"$f":"D2","v":"سند قبض نقدى"},{"$f":"E2","v":12}]
[{"$f":"A3","v":"اسـتلـمنا نحن /"},{"$f":"B3","v":"شركةالنورلخدمات الكمبيوتروالانترنت"}]
["من  الساده  / ",{"$f":"B4","v":"س"}]
[{"$f":"A5","v":"   مبلغ وقدرة /  "},{"$f":"B5","v":0},{"$f":"C5","v":{"$error":"#NAME?"}}]
["وذلك قيمة         /",{"$f":"B6","v":0}]
[{"$f":"A7","v":"بيانات العميل"}]
["اسم العميل","الرقم الارضى","رقم المحمول","نوع الخدمه المقدمه","تاريخ بداية الخدمه","تاريخ انتهاء الخدمه"]
[{"$f":"A9","v":"س"},{"$f":"B9","v":""},"","","",""]
[]
[null,null,null,null,"المستلم /"]
[null,null,null,null,"التوقيع /","أصل"]
[{"$f":"A1","v":"شركةالنورلخدمات الكمبيوتروالانترنت"},null,null,null,"التاريخ :",{"$f":"B2","v":"00:00:00"}]
[null,null,null,{"$f":"D14","v":"سند قبض نقدى"},{"$f":"E2","v":12}]
[{"$f":"A3","v":"اسـتلـمنا نحن /"},"شركةالنورلخدمات الكمبيوتروالانترنت"]
["من  السيد/","س"]
["   مبلغ وقدرة /  ",0,{"$f":"C5","v":{"$error":"#NAME?"}}]
["وذلك قيمة    /",0]
[{"$f":"A19","v":"بيانات العميل"}]
["اسم العميل","الرقم الارضى","رقم المحمول","نوع الخدمه المقدمه","تاريخ بداية الخدمه","تاريخ انتهاء الخدمه"]
[{"$f":"A9","v":"س"},{"$f":"B9","v":""},"","","",""]
[]
[null,null,null,null,"المستلم /"]
[null,null,null,null,"التوقيع /","صوره1"]
[{"$f":"A1","v":"شركةالنورلخدمات الكمبيوتروالانترنت"},null,null,null,"التاريخ :",{"$f":"B2","v":"00:00:00"}]
[null,null,null,{"$f":"D26","v":"سند قبض نقدى"},{"$f":"E2","v":12}]
[{"$f":"A15","v":"اسـتلـمنا نحن /"},{"$f":"B3","v":"شركةالنورلخدمات الكمبيوتروالانترنت"}]
[{"$f":"A16","v":"من  الساده  / "},{"$f":"B4","v":"س"}]
[{"$f":"A17","v":"   مبلغ وقدرة /  "},{"$f":"B5","v":0},{"$f":"C5","v":{"$error":"#NAME?"}}]
[{"$f":"A18","v":"وذلك قيمة         /"},{"$f":"B6","v":0}]
[{"$f":"A31","v":"بيانات العميل"}]
["اسم العميل","الرقم الارضى","رقم المحمول","نوع الخدمه المقدمه","تاريخ بداية الخدمه","تاريخ انتهاء الخدمه"]
[{"$f":"A9","v":"س"},{"$f":"B9","v":""},"","","",""]
[]
[null,null,null,null,"المستلم /"]
[null,null,null,null,"التوقيع /","صورة"]
[]
[" قبض نقدى رقم",{"$f":"E2","v":12},{"$f":"A1","v":"شركةالنورلخدمات الكمبيوتروالانترنت"}]
["التاريخ",{"$f":"B2","v":"00:00:00"}]
["التاريخ","رقم القيد","نوع الحساب","اسم الحساب","تاريخ بداية الخدمه","تاريخ انتهاء الخدمه","مدين","دائن"]
[{"$f":"B51","v":"00:00:00"},{"$f":"CONCATENATE($A$50,$B$50)","v":" قبض نقدى رقم12"},"الصناديق",{"$f":"D3","v":"خزينة الادارة"},null,null,{"$f":"B5","v":0},null,{"$f":"E2","v":12}]
[{"$f":"B51","v":"00:00:00"},{"$f":"CONCATENATE($A$50,$B$50)","v":" قبض نقدى رقم12"},"العملاء",{"$f":"B4","v":"س"},{"$f":"E9","v":""},{"$f":"F9","v":""},null,{"$f":"B5","v":0},{"$f":"E2","v":12}]
[null,null,null,null,null,"الاجمالى",{"$f":"G53","v":0},{"$f":"H54","v":0}]
[]
[null,null,null,null,null,"المحاسب"]

{"sheet":"عام","index":1,"n_rows":23,"n_cols":12,"rows_kept":23,"cut":false,"hidden":true,"merged":[]}
[null,null,null,"التاريخ","رقم القيد","نوع الحساب","اسم الحساب","تاريخ بداية الخدمه","تاريخ انتهاء الخدمه","مدين","دائن","مسلسل"]
[null,null,null,"2014-12-17"," قبض نقدى رقم1","الصناديق","خزينة الادارة",null,null,100,null,1]
[null,null,null,"2014-12-17"," قبض نقدى رقم1","العملاء","عبد الله سيد عبد الحليم حسين رزق ","2014-12-01","2014-12-31",null,100,1]
[null,null,null,"2014-12-17"," قبض نقدى رقم2","الصناديق","خزينة الادارة",null,null,95,null,2]
[null,null,null,"2014-12-17"," قبض نقدى رقم2","العملاء","تمام سيد احمد حسن ","2014-12-02","2015-01-01",null,95,2]
[null,null,null,"2014-12-17"," قبض نقدى رقم3","الصناديق","خزينة الادارة",null,null,145,null,3]
[null,null,null,"2014-12-17"," قبض نقدى رقم3","العملاء","كريمه امين عبد الخالق عبد البر","2014-11-30","2014-12-30",null,145,3]
[null,null,null,"2014-12-18"," قبض نقدى رقم4","الصناديق","خزينة الادارة",null,null,110,null,4]
[null,null,null,"2014-12-18"," قبض نقدى رقم4","العملاء","احمد امين محمد امين","2014-12-11","2015-01-10",null,110,4]
[null,null,null,"2014-12-18"," قبض نقدى رقم5","الصناديق","خزينة الادارة",null,null,72,null,5]
[null,null,null,"2014-12-18"," قبض نقدى رقم5","العملاء","محمد الخشن","2014-12-02","2015-01-01",null,72,5]
[null,null,null,"2014-12-18"," قبض نقدى رقم6","الصناديق","خزينة الادارة",null,null,73,null,6]
[null,null,null,"2014-12-18"," قبض نقدى رقم6","العملاء","احمد محمد رشاد ابراهيم ","2014-11-30","2014-12-30",null,73,6]
[null,null,null,"2014-12-18"," قبض نقدى رقم7","الصناديق","خزينة الادارة",null,null,145,null,7]
[null,null,null,"2014-12-18"," قبض نقدى رقم7","العملاء","ياسرمحمد جاد المولي","2014-12-04","2015-01-03",null,145,7]
[null,null,null,"2014-12-18"," قبض نقدى رقم8","الصناديق","خزينة الادارة",null,null,140,null,8]
[null,null,null,"2014-12-18"," قبض نقدى رقم8","العملاء","علاء محمد ياسين معبد ","2014-12-07","2015-01-06",null,140,8]
[null,null,null,"2014-12-18"," قبض نقدى رقم9","الصناديق","خزينة الادارة",null,null,110,null,9]
[null,null,null,"2014-12-18"," قبض نقدى رقم9","العملاء","محمد سيد سيد","2014-11-07","2014-12-07",null,110,9]
[null,null,null,"2014-12-18"," قبض نقدى رقم10","الصناديق","خزينة الادارة",null,null,145,null,10]
[null,null,null,"2014-12-18"," قبض نقدى رقم10","العملاء","عبدالعزيز ابراهيم احمد سلامة ","2014-12-02","2015-01-01",null,145,10]
[null,null,null,"2014-12-19"," قبض نقدى رقم11","الصناديق","خزينة الادارة",null,null,100,null,11]
[null,null,null,"2014-12-19"," قبض نقدى رقم11","العملاء","محمد عيد محمد فيصل ","2014-12-19","2015-01-18",null,100,11]

{"sheet":"بيان بالاشتراكات المستحقه","index":2,"n_rows":16,"n_cols":13,"rows_kept":16,"cut":false,"hidden":false,"merged":[[1,5,1,8],[2,5,2,12],[0,5,0,12]]}
[]
[null,null,null,null,null,"شركة النور لخدمات النت",null,null,null,"التاريخ /",null,{"$f":"NOW()","v":"2022-01-01T00:09:32.990"}]
[null,null,null,null,null,"بيان بالاشتراكات المستحقه"]
[null,null,null,null,null,null,null,null,"حتى تاريخ","2022-01-01"]
[]
[null,null,null,null,null,"م","اسم المشترك","الرقم الارضى","رقم المحمول","نوع الخدمه",null,"تاريخ انتهاء الخدمه","قيمة الاشتراك"]
[null,"2014-04-04","قبض نقدى رقم1","الصناديق","صندوق رقم 5",1,"عبد الله سيد عبد الحليم حسين رزق ","0238627177-Syed",1002491550,"ADSL4M",null,"2014-12-31",{"$f":"IFERROR(VLOOKUP(G7,العملاء!B3:H10000,6,0),\"\")","v":100}]
[null,null,null,null,null,2,"تمام سيد احمد حسن ","0238620616-Tammam ",1278804664,"ADSL512",null,"2015-01-01",{"$f":"IFERROR(VLOOKUP(G8,العملاء!B4:H10001,6,0),\"\")","v":95}]
[null,null,null,null,null,3,"كريمه امين عبد الخالق عبد البر","0238624839-Karima",1098921911,"ADSL1M",null,"2014-12-30",{"$f":"IFERROR(VLOOKUP(G9,العملاء!B5:H10002,6,0),\"\")","v":145}]
[null,null,null,null,null,4,"احمد امين محمد امين","0238017044-Ahmed ",1001228392,"ADSL1M",null,"2015-01-10",{"$f":"IFERROR(VLOOKUP(G10,العملاء!B6:H10003,6,0),\"\")","v":110}]
[null,null,null,null,null,5,"محمد الخشن","0238620012-elnour",1140680152,"ADSL512",null,"2015-01-01",{"$f":"IFERROR(VLOOKUP(G11,العملاء!B7:H10004,6,0),\"\")","v":72}]
[null,null,null,null,null,6,"احمد محمد رشاد ابراهيم ","0238624364-Ahmed ",1228083559,"ADSL",null,"2014-12-30",{"$f":"IFERROR(VLOOKUP(G12,العملاء!B8:H10005,6,0),\"\")","v":73}]
[null,null,null,null,null,7,"ياسرمحمد جاد المولي","0238622146-Yasser",1228535990,"ADSL1M",null,"2015-01-03",{"$f":"IFERROR(VLOOKUP(G13,العملاء!B9:H10006,6,0),\"\")","v":145}]
[null,null,null,null,null,8,"علاء محمد ياسين معبد ","0238625000-Alaa ",1159159411,"ADSL1M",null,"2015-01-06",{"$f":"IFERROR(VLOOKUP(G14,العملاء!B10:H10007,6,0),\"\")","v":140}]
[null,null,null,null,null,9,"محمد سيد سيد",38620701,0,"adsl1m",null,"2014-12-07",{"$f":"IFERROR(VLOOKUP(G15,العملاء!B11:H10008,6,0),\"\")","v":110}]
[null,null,null,null,null,10,"عبدالعزيز ابراهيم احمد سلامة ","0238620736-Abd",1153853187,"ADSL1M",null,"2015-01-01",{"$f":"IFERROR(VLOOKUP(G16,العملاء!B12:H10009,6,0),\"\")","v":145}]

{"sheet":"حساب تفصيلى لمشترك","index":3,"n_rows":11,"n_cols":12,"rows_kept":11,"cut":false,"hidden":false,"merged":[[0,5,0,11],[2,5,2,11],[1,5,1,8],[8,5,8,11],[5,5,6,5]]}
[]
[null,null,null,null,null,"شركةالنورلخدمات الكمبيوتروالانترنت",null,null,null,"التاريخ /",null,{"$f":"NOW()","v":"2022-01-01T00:09:32.990"}]
[null,null,null,null,null,"كشف حساب مشترك"]
[null,null,null,null,null,null,null,null,"اسم المشترك","محمد عيد محمد فيصل "]
[]
[null,null,null,null,null,"البيانات الاساسيه","الرقم الارضى","رقم المحمول","نوع الخدمه","تاريخ التعاقد",null,"قيمة الاشتراك"]
[null,null,null,null,null,null,{"$f":"IFERROR(VLOOKUP(J4,العملاء!B4:J10000,2,0),\"\")","v":"0238627511-Mohamed"},{"$f":"IFERROR(VLOOKUP(J4,العملاء!B4:J10000,3,0),\"\")","v":"01145295264"},{"$f":"IFERROR(VLOOKUP(J4,العملاء!B4:J10000,4,0),\"\")","v":"adsl512"},{"$f":"IFERROR(VLOOKUP(J4,العملاء!B4:J10000,5,0),\"\")","v":"2013-09-04"},null,{"$f":"IFERROR(VLOOKUP(J4,العملاء!B4:J10000,6,0),\"\")","v":100}]
[]
[null,null,null,null,null,"ثانيا: - بيان الدفعات"]
[null,null,null,null,null,"م","التاريخ","رقم سند القبض","تاريخ بداية الخدمه","تاريخ انتهاء الخدمه",null,"المبلغ"]
[null,"2014-04-04","قبض نقدى رقم1","الصناديق","صندوق رقم 5",1,"2014-12-19"," قبض نقدى رقم11","2014-12-19","2015-01-18",null,100]

{"sheet":"الرئيسيه","index":4,"n_rows":0,"n_cols":0,"rows_kept":0,"cut":false,"hidden":false,"merged":[[0,0,8,7]]}

{"sheet":"العملاء","index":5,"n_rows":395,"n_cols":17,"rows_kept":395,"cut":false,"hidden":false,"merged":[[0,1,0,9]]}
["pktd","شاشة اضافه مشترك جديد"]
[null,"اسم العميل","الرقم الارضى للخدمه","رقم المحمول","نوع الخدمه","تاريخ التعاقد","قيمة الاشتراك","تاريخ بدء الخدمه","User Name","ملاحظات",null,null,null,null,null,null,"العملاء"]
[null,"ا","ا","ا","ا","ا","ا","ا","ا","ا"]
[null,"سعيد زكى سليمان ",238621857,"01110757534","ADSL512","2014-01-01",95,"2014-07-07","0238621857-said"]
[null,"محمد ابراهيم صميده سليمان ","0238624876-mohamed",null,"ADSL",null,null,"2014-05-05","0238624876-mohamed"]
[null,"صابر خطاب غريب حسن ","0238628629-saber",null,"ADSL",null,null,null,"0238628629-saber"]
[null,"عادل داود عبد الغنى طلبه ","0238620037-adel",null,"ADSL",null,null,null,"0238620037-adel"]
[null,0,"0238623492-ibrahim",null,"ADSL",null,null,null,"0238623492-ibrahim"]
[null,"أيمن رمضان احمد محمد فودة ","0238622847-ayman",null,"ADSL",null,null,null,"0238622847-ayman"]
[null,0,"0238630551-tamer",null,"ADSL",null,null,null,"0238630551-tamer"]
[null,"فتحيه عويس محمد ","0238627995-fathya",null,"ADSL",null,null,null,"0238627995-fathya"]
[null,0,"0238623513-motaz",null,"ADSL",null,null,null,"0238623513-motaz"]
["محمد","عبد المهيمن حسن ابراهيم ","0238621968-abd",null,"ADSL",null,null,null,"0238621968-abd"]
[null,"احمد يحيى يوسف محمد ","0238628583-ahmed",null,"ADSL",null,null,null,"0238628583-ahmed"]
[null,0,"0238623481-abd",null,"ADSL",null,null,null,"0238623481-abd"]
[null,"جمال عرفات بشير سلام ","0238015371-gamal",null,"ADSL",null,null,null,"0238015371-gamal"]
[null,"ربيع ابراهيم على مرعى ","0238626382-rabei",null,"ADSL",null,null,null,"0238626382-rabei"]
[null,"غوينم محمد علي","0238621847-Ghanim","01006276012","ADSL","2012-03-09",95,"2014-12-27","0238621847-Ghanim"]
[null,"حسين احمد حزين عويس ","0238623131-hessen",null,"ADSL",null,null,"2014-04-04","0238623131-hessen"]
[null,0,"0238623327-salah",null,"ADSL",null,null,null,"0238623327-salah"]
[null,0,"0238623697-amr",null,"ADSL",null,null,null,"0238623697-amr"]
[null,"ناصر رجب سيد عويس حسن ","0238629720-naser",null,"ADSL",null,null,null,"0238629720-naser"]
[null,"سلامة سيد سلامة حسين ","0238623739-salama",null,"ADSL",null,null,null,"0238623739-salama"]
[null,"وائل مرسى عيد مرسى ","0238626026-wael",null,"ADSL",null,null,null,"0238626026-wael"]
[null,"فاطمة كمال دسوقى ابراهيم ","0238621974-fatma",null,"ADSL",null,null,null,"0238621974-fatma"]
[null,"ص?ح احمد محمد ربيع ","0238015741-rady",null,"ADSL",null,null,null,"0238015741-rady"]
[null,"راضى رجب سيد عويس ","0238630329-rady",null,"ADSL",null,null,null,"0238630329-rady"]
[null,"محمد صلاح قطب","0238623684-mohamed","01012480001","ADSL",null,null,null,"0238623684-mohamed"]
[null,"عبد الناصر حامد اسماعيل ","0238622416-moamen",null,"ADSL",null,null,null,"0238622416-moamen"]
[null,"ماجده محمد احمد عبد الجليل ","0238620654-Magda",null,"ADSL",null,null,null,"0238620654-Magda"]
[null,"جمعيه الخليل الخيريه ","0238414100-mohammed",null,"ADSL",null,null,null,"0238414100-mohammed"]
[null,"محمد حسن احمد حسن ","0238625263-mohamed","01110190139","ADSL",null,null,null,"0238625263-mohamed"]
[null,"شوقى كمال احمد عويس ","0238623890-shawky",null,"ADSL",null,null,null,"0238623890-shawky"]
[null,"طلعت محمد عثمان ","0237132204-talat",null,"ADSL",null,null,null,"0237132204-talat"]
[null,"لطفى محمد سالم سعودى ","0238622339-lotfy",null,"ADSL",null,null,null,"0238622339-lotfy"]
[null,"محمد احمد احمد البنا ","mohmed-0233289523",null,"ADSL",null,null,null,"mohmed-0233289523"]
[null,0,"Mohamed-0238630549",null,"ADSL",null,null,null,"Mohamed-0238630549"]
[null,"كرم سيد عبد الباقى سيد ","0238623700-karm",null,"ADSL",null,null,null,"0238623700-karm"]
[null,0,"Mohammed-0238622829",null,"ADSL",null,null,null,"Mohammed-0238622829"]
[null,"مكرم يونان عبد المسيح ","0238625492-Makram",null,"ADSL",null,null,null,"0238625492-Makram"]
[null,"مصطفى محمود محمد محمودالخشن ","0238623745-Mostafa",null,"ADSL",null,null,null,"0238623745-Mostafa"]
[null,"نادر عويس محمود محمد ","0238017884-nader",null,"ADSL",null,null,null,"0238017884-nader"]
[null,0,"0238623575-Jamal",null,"ADSL",null,null,null,"0238623575-Jamal"]
[null,"شركه النور","0238620007-bothina",null,"ADSL",null,null,null,"0238620007-bothina"]
[null,"احمد بدوى احمد بدر ","028622840-ahmed",null,"ADSL",null,null,null,"028622840-ahmed"]
[null,"ايمان عبد المنعم سعيد عرفه ","0238625038-eman",null,"ADSL",null,null,null,"0238625038-eman"]
[null,"محمد على هارون ","0238623670-Mohammed",null,"ADSL",null,null,null,"0238623670-Mohammed"]
[null,"خالد كمال دسوقى ","0238621594-Desouqy",null,"ADSL",null,null,null,"0238621594-Desouqy"]
[null,"احمد محمد ابراهيم امام ","0238623966-Mohamed","01116877572","ADSL",null,null,null,"0238623966-Mohamed"]
[null,"شكرى طلعت محمد شاكر ","0238629705-Shokri",null,"ADSL",null,null,null,"0238629705-Shokri"]
[null,"احمد على كيلانى محمد ","38623956-ahmed",null,"ADSL",null,null,null,"38623956-ahmed"]
[null,"خليل ابراهيم محمد ماجد ","0238622079-Majid",null,"ADSL",null,null,null,"0238622079-Majid"]
[null,"اسعد محمود عبد الله مرزوق ","0238621685-Mahmood",null,"ADSL",null,null,null,"0238621685-Mahmood"]
[null,"عمر عبد اللطيف ادريس ","0238620114-Omar",null,"ADSL",null,null,null,"0238620114-Omar"]
[null,"…………..","0238630657-afker","01122259447","ADSL",null,null,null,"0238630657-afker"]
[null,"سعيد محمد صوفى متولى ","0238620993-Saeed",null,"ADSL",null,null,null,"0238620993-Saeed"]
[null,"……………….","0238017984-Mohammad",null,"ADSL",null,null,null,"0238017984-Mohammad"]
[null,"مصطفي مدبولي ","0238627531-Moustafa",null,"ADSL",null,null,null,"0238627531-Moustafa"]
[null,"عبد الناصر محمود جبر ","0238620825-mahmoud",null,"ADSL",null,null,null,"0238620825-mahmoud"]
[null,"خالد كامل عوده كامل ","0238622860-Khaled",null,"ADSL",null,null,null,"0238622860-Khaled"]
[null,"حسن اسماعيل حسن ","0238625715-Ismail",null,"ADSL",null,null,null,"0238625715-Ismail"]
[null,"ابوسريع محمد عبدالرحمن خليفة ","0238630788-ahmed",null,"ADSL",null,null,null,"0238630788-ahmed"]
[null,"عبد السلام صديق حسانين اعادة تشغيل ","0227641492-Hassanein",null,"ADSL",null,null,null,"0227641492-Hassanein"]
[null,"احمد محمود عادل محمد حسن ","0238624030-Mohammed",null,"ADSL",null,null,null,"0238624030-Mohammed"]
[null,"...................","0238622896-Mohammed",null,"ADSL",null,null,null,"0238622896-Mohammed"]
[null,"اسلام محمد محمود محمد ","0238630750-Mohammed",null,"ADSL",null,null,null,"0238630750-Mohammed"]
[null,"......................","0238624050-Abdullah",null,"ADSL",null,null,null,"0238624050-Abdullah"]
[null,"ابراهيم احمد شديد سالم ","0238624041-Ibrahim",null,"ADSL",null,null,null,"0238624041-Ibrahim"]
[null,"صحراوى عبد الرحمن حسن ","0238625627-ahmedahme",null,"ADSL",null,null,null,"0238625627-ahmedahme"]
[null,"عبد السلام عبد المحسن سالم ","0238624882-Abdel","01226251990","ADSL",null,null,null,"0238624882-Abdel"]
[null,"عبداللة احمد محمدوعبدالرسول ","0238624946-Mamedoabdalrs",null,"ADSL",null,null,null,"0238624946-Mamedoabdalrs"]
[null,"فتحى محمد عبد القادر يوسف ","0238016008-Fathy",null,"ADSL",null,null,null,"0238016008-Fathy"]
[null,"عمر احمد محمد حسن ","0238017783-Omar",null,"ADSL",null,null,null,"0238017783-Omar"]
[null,"عماد سليمان اسماعيل عبد العزيز ","0238622221-Imad",null,"ADSL",null,null,null,"0238622221-Imad"]
[null,"حسن عيسى حسن على ","0238625754-Issa",null,"ADSL",null,null,null,"0238625754-Issa"]
[null,"مصطفى رمضان عبد التواب محمد على ","0238620499-Mustafa",null,"ADSL",null,null,null,"0238620499-Mustafa"]
[null,"محمد عبدالوهاب على عطيف ","0238624128-ahmed",null,"ADSL",null,null,null,"0238624128-ahmed"]
[null,"احمد عبد العزيز ابو سريع ","0238627630-1Ahmed",null,"ADSL",null,null,null,"0238627630-1Ahmed"]
[null,"هانى صلاح حسن محمد فليان ","0238624192-Hany",null,"ADSL",null,null,null,"0238624192-Hany"]
[null,"محمود سيد كامل محمد ","0238624263-Mahmoud","01221459998","ADSL",null,null,null,"0238624263-Mahmoud"]
[null,"ابراهيم دخيل سلامه صبيح ","0238624272-Sabih","01063042792","ADSL",null,null,null,"0238624272-Sabih"]
[null,"محمد فوزى عبدالفتاح طنطاوى ","0238015011-Tantawi",null,"ADSL",null,null,null,"0238015011-Tantawi"]
[null,"رجب فهيم محمد عماره ","0238624243-Recep","01002740994","ADSL",null,null,null,"0238624243-Recep"]
[null,"محمد قرنى علام على ","0238015001-Allam","01125408106","ADSL",null,null,null,"0238015001-Allam"]
[null,"مريم سيد محمد خليفه ","0238624191-Mary",null,"ADSL",null,null,null,"0238624191-Mary"]
[null,"محمد عبدالخالق احمد شمس الدين ","0238416193-Mohammed",null,"ADSL",null,null,null,"0238416193-Mohammed"]
[null,"عاصم محمد قرنى مبروك ","0238624624-Asim",null,"ADSL",null,null,null,"0238624624-Asim"]
[null,"مروه عبدالحليم غريب على بكر ","0238624318-Marwa",null,"ADSL",null,null,null,"0238624318-Marwa"]
[null,"مصطفى كمال عبد الحكيم عطا ","0238624319-Mustafa",null,"ADSL",null,null,null,"0238624319-Mustafa"]
[null,"شوقى ابراهيم محمد ","0238620863-Shawki",null,"ADSL",null,null,null,"0238620863-Shawki"]
[null,"احمد مجاهد محمد مجاهد ادريس ","0238624282-Mohammad",null,"ADSL",null,null,null,"0238624282-Mohammad"]
[null,"محمود عبد المنعم سالم عوض الله ","38624334-Salem","01123553200","ADSL",null,null,null,"38624334-Salem"]
[null,"محمد عبدالغنى قرنى عبدالغنى ","0238623030-Mohammed","01289988577","ADSL",null,null,null,"0238623030-Mohammed"]
[null,"اشرف عبد الجيد عبد الجيد احمد ","0238622759-Ashraf",null,"ADSL",null,null,null,"0238622759-Ashraf"]
[null,"احمد عبد الفتاح سعد عبد الفتاح رزق ","0238630966-bothina","01144105050","512ADSL","2012-01-01",10,"2014-12-01","0238630966-bothina"]
[null,"مجدى قرنى جنيدى جاد ","0238620621-Magdy ",null,"ADSL",null,null,null,"0238620621-Magdy "]
[null,"احمد مرعى عبد المنعم علام ","0238631034-Ahmed ",null,"ADSL",null,null,null,"0238631034-Ahmed "]
[null,"احمد محمد رشاد ابراهيم ","0238624364-Ahmed ","01228083559","ADSL",null,73,"2014-11-30","0238624364-Ahmed "]
[null,"سليم مسعد سعد مسعد ","0238624413-Salim",null,"ADSL",null,null,null,"0238624413-Salim"]
[null,"حماده عبد الوهاب محمد عبد الوهاب ","0238624297-Hamada ",null,"ADSL",null,null,null,"0238624297-Hamada "]
[null,"شركة المدينه المنورة لتجارة مواد البناء ","0238627122-Medina ",null,"ADSL",null,null,null,"0238627122-Medina "]
[null,"صبحى على احمد حسين ","0238628368-Sobhy ",null,"ADSL",null,null,null,"0238628368-Sobhy "]
[null,"اميره محمد على حسن اسماعيل ","0238624452-Amira ",null,"ADSL",null,null,null,"0238624452-Amira "]
[null,"شركة المدينه المنوره لموادالبناء ","0238630930-Medina ",null,"ADSL",null,null,null,"0238630930-Medina "]
[null,"عادل سيد محمد صالح ","0238624432-Adel ",null,"ADSL",null,null,null,"0238624432-Adel "]
[null,"ورثة حسين احمد حسين ","0238631029-Rania","01063170951","ADSL",null,null,null,"0238631029-Rania"]
[null,"عصمت شعبان محمد غريب النحاس ","0238620395-Ismet ",null,"ADSL",null,null,null,"0238620395-Ismet "]
[null,"احلام محمد احمد عزوز  ","0238621524-Ahlam ",null,"ADSL",null,null,null,"0238621524-Ahlam "]
[null,"ابراهيم اسماعيل ابراهيم فوده ","0238624463-ahmed ",null,"ADSL",null,null,null,"0238624463-ahmed "]
[null,"منى سيد حسن على عمار ","0238624469-Mona ",null,"ADSL",null,null,null,"0238624469-Mona "]
[null,"عاطف احمد صديق خطاب ","0238631035-Atef ",null,"ADSL",null,null,null,"0238631035-Atef "]
[null,"سعاد عبد الهادى عبد العزيز خليل ","0238624438-Suad ",null,"ADSL",null,null,null,"0238624438-Suad "]
[null,"ابراهيم اسماعيل حسن على ","0238631038-Ibrahim ",null,"ADSL",null,null,null,"0238631038-Ibrahim "]
[null,".................","0238631027 -Salah ",null,"ADSL",null,null,null,"0238631027 -Salah "]
[null,"عيد محمد منصور محمد يوسف ","0238015902-Eid ",null,"ADSL",null,null,null,"0238015902-Eid "]
[null,"..........................","0238631045-Ahmed ",null,"ADSL",null,null,null,"0238631045-Ahmed "]
[null,"عبد العاطى قرنى عبد السميع حسين عوض ","0238630958-Abdel ",null,"ADSL",null,null,null,"0238630958-Abdel "]
[null,"طلال احمد محمد كامل ","0238621012-Talal ",null,"ADSL",null,null,null,"0238621012-Talal "]
[null,"عمرو سيد عبد الباقى سيد سلامة ","0238623288-Amr ",null,"ADSL",null,null,null,"0238623288-Amr "]
[null,"..................","0238625235-Ahmed ",null,"ADSL",null,null,null,"0238625235-Ahmed "]
[null,"...................","0238626044-Abdul ",null,"ADSL",null,null,null,"0238626044-Abdul "]
[null,"سكينه سيد عبد الباقى محمد ","0238629750-Sakineh ",null,"ADSL",null,null,null,"0238629750-Sakineh "]
[null,null,"0238625339-Samir ",null,"ADSL",null,null,null,"0238625339-Samir "]
[null,"عارف عبدالرحمن محمد حسن شافعى ","0238015062-Arif ",null,"ADSL",null,null,null,"0238015062-Arif "]
[null,"محمد صلاح عبده محمد ","0238626146-Salah ",null,"ADSL",null,null,null,"0238626146-Salah "]
[null,"اهياب امين غوانيم","0238631046-Ehab ","01149346483","ADSL",null,null,null,"0238631046-Ehab "]
[null,"محمد عبد الله محمد عبد اللطيف ","0238625833-Abdul1",null,"ADSL",null,null,null,"0238625833-Abdul1"]
[null,"محمد رمضان بشير محمد ","0238631048-Mohamed ",null,"ADSL",null,null,null,"0238631048-Mohamed "]
[null,"سعيد محمد عويس حسن ","0238625862-Said ",null,"ADSL",null,null,null,"0238625862-Said "]
[null,"محمود امين قرنى على ","0238624955-Mahmoudh",null,"ADSL",null,null,null,"0238624955-Mahmoudh"]
[null,"احمد حسين ","0238016208-Ahmed ","01063328407","ADSL",null,null,null,"0238016208-Ahmed "]
[null,"هليل محيسن منصور نصار ","0238015085-Hillel ",null,"ADSL",null,null,null,"0238015085-Hillel "]
[null,"عثمان عبدالرحمن حسن عثمان ","0238625844-Othman ",null,"ADSL",null,null,null,"0238625844-Othman "]
[null,"هانى سيد قرنى مجاور ","0238625899-Hany",null,"ADSL",null,null,null,"0238625899-Hany"]
[null,"فاطمه ناصر احمد محمد ","02386263111-Fatima ",null,"ADSL",null,null,null,"02386263111-Fatima "]
[null,"مجدى محمد محمد حسنين ","0238624110-Magdy ",null,"ADSL",null,null,null,"0238624110-Magdy "]
[null,"سحر رفعت احمد محمد محمد ","0238626123-Rifaat ",null,"ADSL",null,null,null,"0238626123-Rifaat "]
[null,"محمد عبد العزيز محمد رزق  ","0238626350-Mohammed ",null,"ADSL",null,null,null,"0238626350-Mohammed "]
[null,"تمام سيد احمد حسن ","0238620616-Tammam ","01278804664","ADSL512","2014-02-12",95,"2014-01-12","0238620616-Tammam "]
[null,"عبد الرازق حسن عبدالرازق ","0238411773_ahmed ",null,null,null,null,null,"0238411773_ahmed "]
[null,"علاء محمد ياسين معبد ","0238625000-Alaa ","01159159411","ADSL1M","2014-01-07",140,"2014-12-07","0238625000-Alaa "]
[null,"جمعه محمد جمعه محمد الخشن ","0238626522-Juma ",null,null,null,null,null,"0238626522-Juma "]
[null,"حسين عمر حسين ابو طالب ","0238625977-Hussein ","01112536346",null,null,null,null,"0238625977-Hussein "]
[null,"محمد رمضان كامل سيد ","0238625051-Mohamed ",null,null,null,null,null,"0238625051-Mohamed "]
[null,"على نجاح عبد النعيم عبد المقصود ","0238625877-Abdul ",null,null,null,null,null,"0238625877-Abdul "]
[null,"....................","0238626511-Mahmoud ",null,null,null,null,null,"0238626511-Mahmoud "]
[null,"عبد العزيز اسماعيل العمرى ابراهيم ","0238629317-Abdul ",null,null,null,null,null,"0238629317-Abdul "]
[null,"صبحي رمضان","0238625106-Sobhy ","01115465583",null,null,null,null,"0238625106-Sobhy "]
[null,"اميره ثابت فتح الباب على ","0238626633-Amir ",null,null,null,null,null,"0238626633-Amir "]
[null,"احمد عبد العظيم محمد ","0238621374-Ahmed ",null,null,null,null,null,"0238621374-Ahmed "]
[null,"عزه عبد الفتاح عويس محمد ","0238625922-Azza ",null,null,null,null,null,"0238625922-Azza "]
[null,"احمد صلاح طه على ","0238631062-Ahmed ",null,null,null,null,null,"0238631062-Ahmed "]
[null,"سعيد احمد محمود ","0238626247-Saeed ",null,null,null,null,null,"0238626247-Saeed "]
[null,"محمد عبد الرازق امين ابو العلا ","0238631074-Osama ",null,null,null,null,null,"0238631074-Osama "]
[null,"....................","0238631059-Hassan ",null,null,null,null,null,"0238631059-Hassan "]
[null,"حنفى محمود محمد على ","0238621227-Hanafy",null,null,null,null,null,"0238621227-Hanafy"]
[null,"محمود احمد عبد الجواد حميده","0238626677-Mahmoud ","01011187605",null,null,null,null,"0238626677-Mahmoud "]
[null,"يسرى حسنين احمد فتح الله","0238621772-Yousry ",null,null,null,null,null,"0238621772-Yousry "]
[null,"حسن احمد حسن عبد الجليل","0238626733-Hassan ",null,null,null,null,null,"0238626733-Hassan "]
[null,"صبرى كامل على","0238626855-Sabry ",null,null,null,null,null,"0238626855-Sabry "]
[null,"هاني كامل ","0238626711-Hany ","01112785081",null,null,null,null,"0238626711-Hany "]
[null,"كريم طارق ممدوح عبد العزيز","0238626766-Karim",null,null,null,null,null,"0238626766-Karim"]
[null,"ناديه على محمد عبد الباقى","0238626866-Nadia ",null,null,null,null,null,"0238626866-Nadia "]
[null,"احمد سعيد رجب جاد","0238627011-Ahmed ","01285774153",null,null,null,null,"0238627011-Ahmed "]
[null,"على عبدالعظيم عبدالمحسن عبدالواحد","0238410682-Abdel ",null,null,null,null,null,"0238410682-Abdel "]
[null,"عيد محمد محمود اسماعيل","0238626944-Eid","01119178159",null,null,null,null,"0238626944-Eid"]
[null,"احمد فرج المكنيكي","0238624553-Ahmed ","01289844772",null,null,null,null,"0238624553-Ahmed "]
[null,"سيد امام السيد فراج","38629144-Sayed ",null,null,null,null,null,"38629144-Sayed "]
[null,"محمد عبد الرحمن محمد سيد احمد غوينم","0238620530-Mohamed ",null,null,null,null,null,"0238620530-Mohamed "]
[null,"حسام ابو عمار ","0238624596-Samra","01116055044",null,null,null,null,"0238624596-Samra"]
[null,"سحر محمد على مراد","0238622980-Sahar ",null,null,null,null,null,"0238622980-Sahar "]
[null,"د/ سعيد","0238629859-Salah","01118079632",null,null,null,null,"0238629859-Salah"]
[null,"ابراهيم محمد السيد موسى","0238626433-Ibrahim",null,null,null,null,null,"0238626433-Ibrahim"]
[null,"……………………","0238630549-Mohammed ",null,null,null,null,null,"0238630549-Mohammed "]
[null,"عبد الناصر حسنى محمد فرغلى","0238624646-Abdel ",null,null,null,null,null,"0238624646-Abdel "]
[null,"ابراهيم جميل محمد","0238620298-Ibrahim ",null,null,null,null,null,"0238620298-Ibrahim "]
[null,"عمرو محمد محمد غريب","0238630232-Amr ",null,null,null,null,null,"0238630232-Amr "]
[null,"وائل محمد عبد الرحمن محمود","0238629970-Wael ",null,null,null,null,null,"0238629970-Wael "]
[null,"احمد حسين عويس","0238622440-Ahmed ","01208038810",null,null,null,null,"0238622440-Ahmed "]
[null,"مصطفي جمال الدين","0238622893-Mahmoud ","01116920105",null,null,null,null,"0238622893-Mahmoud "]
[null,"احمد دسوقى عبدالله عبدالله","0238626133-Ahmed ",null,null,null,null,null,"0238626133-Ahmed "]
[null,"هشام شعبان عبد الكريم سليمان","0238624680-Hisham ",null,null,null,null,null,"0238624680-Hisham "]
[null,"احمد صلاح عبد القوى","0238627310-Ahmed ","01228383971",null,null,null,null,"0238627310-Ahmed "]
[null,"ممدوح عبداللطيف عبداللطيف مبروك","0238624631-Mamdouh ",null,null,null,null,null,"0238624631-Mamdouh "]
[null,"محمد فتحى احمد محمد","0238625944-Mohamed ","01145154161",null,null,null,null,"0238625944-Mohamed "]
[null,"ربيع بكرى محمد","0238620399-Bakri ",null,null,null,null,null,"0238620399-Bakri "]
[null,"رضا حسن احمد على شنب","0238621239-Reza ",null,null,null,null,null,"0238621239-Reza "]
[null,"رضا يسين مرسى سالم","0238624629-Yassin ",null,null,null,null,null,"0238624629-Yassin "]
[null,"ياسرمحمد جاد المولي","0238622146-Yasser","01228535990","ADSL1M","2012-01-01",145,"2014-12-04","0238622146-Yasser"]
[null,"……………..","0238628028-Mohamed ",null,null,null,null,null,"0238628028-Mohamed "]
[null,"احمد على محمد محمد اسماعيل","0238624751-Ahmed ",null,null,null,null,null,"0238624751-Ahmed "]
[null,"احمد محمد حسين عيد","0238624582-Ahmed",null,null,null,null,null,"0238624582-Ahmed"]
[null," عصام محمد محمد عيد","0238624838-Essam ",null,null,null,null,null,"0238624838-Essam "]
[null,"طلعت ابراهيم محمد على مراد ","0238624812-Talaat",null,null,null,null,null,"0238624812-Talaat"]
[null,"احمد محمد صبير","0238620910-Ahmed","01008580890",null,null,null,null,"0238620910-Ahmed"]
[null,"عماد محفوظ محمود محفوظ","0238625539-Mahfouz","01147327792","ADSL512","2013-09-18",95,"25/12/2014","0238625539-Mahfouz"]
[null,"الجمل عيد سيف حسن","0238629129-Camel","01150710233","ADSL512","2013-11-27",95,"2014-12-27","0238629129-Camel"]
[null,"حسين عبد الرحمن محمد","0238625089-Hussein",null,null,null,null,null,"0238625089-Hussein"]
[null,"محمد كامل محمد عبد الواحد","0238624883-Mohamed","01118701857",null,null,null,null,"0238624883-Mohamed"]
[null,"ابراهيم احمد توفيق محمد عبده","0238627117-Ibrahim",null,null,null,null,null,"0238627117-Ibrahim"]
[null,"نورا عبدالله عطيه","0238624905-Nora","01283943497",null,null,null,null,"0238624905-Nora"]
[null,"احمد محمد ابراهيم","0238622399-Ahmed",null,null,null,null,null,"0238622399-Ahmed"]
[null,"محمد عيد محمد فيصل ","0238627511-Mohamed","01145295264","adsl512","2013-09-04",100,"19/12/2014","0238627511-Mohamed"]
[null," احمد رشدى احمد طلبه","0238627098-Ahmed",null,null,null,null,null,"0238627098-Ahmed"]
[null,"طلعت ابراهيم محمد على مراد","0238624812-Talaat",null,null,null,null,null,"0238624812-Talaat"]
[null,"ماجدة عبدالرحمن احمد على شنب","0238624898-Magda",null,null,null,null,null,"0238624898-Magda"]
[null,"عصام محمد محمد عيد","0238624838-Essam",null,null,null,null,null,"0238624838-Essam"]
[null,"رنا عبد الله زكى حموده","0238017117-Abdullah ",null,null,null,null,null,"0238017117-Abdullah "]
[null,"وليد جميل محمد سالم السيسى","0238017555-Walid",null,null,null,null,null,"0238017555-Walid"]
[null,"محمد صديق كامل","0238628964-Holiday ","01063305411",null,null,null,null,"0238628964-Holiday "]
[null,"سميرة سيد عبدالحليم حسين رزق","0238623476-Amiraa",null,null,null,null,null,"0238623476-Amiraa"]
[null,"تقية محمد عزوز ادريس ","0238624863-Azouz",null,null,null,null,null,"0238624863-Azouz"]
[null,"نجات محمود مسلم","0238629231-Najat","01148808970",null,null,null,null,"0238629231-Najat"]
[null,"هدى جادالحق محمد رفاعى ","0238624878-An","01206290744","ADSL1M","2013-01-09",110,null,"0238624878-An"]
[null,"احمد عمر سيد ابو زيد ","0238620200-Ahmed",null,null,null,null,null,"0238620200-Ahmed"]
[null,"……………….","0238624977-Ahmed ",null,null,null,null,null,"0238624977-Ahmed "]
[null,"…………….","0238624958-Ali ",null,null,null,null,null,"0238624958-Ali "]
[null,"فرج ابراهيم عبد الباقى خضر ","0238624947-Farag",null,null,null,null,null,"0238624947-Farag"]
[null,"محمد على ضاهر ابراهيم ","0238630789-Ibrahim ",null,null,null,null,null,"0238630789-Ibrahim "]
[null,"عماد جمال مجمد عطا","0238624857-Imad ","01115860132",null,null,null,null,"0238624857-Imad "]
[null,"……………","0238625952-Hanafi",null,null,null,null,null,"0238625952-Hanafi"]
[null,"محمد سيد حسن على عمار ","0238627188-Mohammed ",null,null,null,null,null,"0238627188-Mohammed "]
[null,"كريم سامى عبد الكريم محمد رزق ","0238626422-Karim ",null,null,null,null,null,"0238626422-Karim "]
[null,"خالد ابراهيم جاد المولى سليمان ","0238625003-Khalid ","01004436754",null,null,null,null,"0238625003-Khalid "]
[null,"عواطف على ضاهر ابراهيم ","0238625845-Emotions ","01220502507",null,null,null,null,"0238625845-Emotions "]
[null,"…………….","0238624987-Salam",null,null,null,null,null,"0238624987-Salam"]
[null,"عبد الله سيد عبد الحليم حسين رزق ","0238627177-Syed","01002491550","ADSL4M","2014-12-01",100,"2014-12-01","0238627177-Syed"]
[null,"تهانى حسانين حسن حسانين ","0238624933-Hassanein",null,null,null,null,null,"0238624933-Hassanein"]
[null,"محمد سعد كمال تمام ","0238623914-Tamam",null,null,null,null,null,"0238623914-Tamam"]
[null,"ماجده عبدالغنى محمد مقلد ","0238624953-Magda "," ",null,null,null,null,"0238624953-Magda "]
[null,"احمد سيد محمد","0238015289-Ahmed","01115633602",null,null,null,null,"0238015289-Ahmed"]
[null,"محمد فاروق الجوهرى شبل ","0238627167-Mohamed ",null,null,null,null,null,"0238627167-Mohamed "]
[null,"……………..","0238625014-Ramy ",null,null,null,null,null,"0238625014-Ramy "]
[null,"اسلام عادل ابراهيم ابراهيم ","0238624060-Islam","01210000274",null,null,null,null,"0238624060-Islam"]
[null,"محمود ناصر سيد عبدالباقى ","0238620191-Mahmoud ",null,null,null,null,null,"0238620191-Mahmoud "]
[null,"نبيل عبدالمنعم على حماده ","0238626234-Nabil",null,null,null,null,null,"0238626234-Nabil"]
[null,"محمد عبد العظيم محمد سيد ","0238622915-Mohamed ","01092350001",null,null,null,null,"0238622915-Mohamed "]
[null,"سمير محمدحسن ","0238624721-Samir ","01285216823",null,null,null,null,"0238624721-Samir "]
[null,"محمود نجاح عبدالباقى عبدالسلام ","0238625060-Mahmoud ","01151746633",null,null,null,null,"0238625060-Mahmoud "]
[null,"كريم احمد حسين","0238626907-Ahmed ","01110977178",null,null,null,null,"0238626907-Ahmed "]
[null,"نورهان ماهر فهيم حامد ","0238620080-Nourhanne ","01158255183",null,null,null,null,"0238620080-Nourhanne "]
[null,"زينب ابرهيم احمد شعبان ","0238629183-Zainab ","01153695156",null,null,null,null,"0238629183-Zainab "]
[null,"نبيلة محمد سعيد محمد كشك ","0238620433-Nabila","01001820864",null,null,null,null,"0238620433-Nabila"]
[null,"قرنى امين قرنى على ","0238625516-Amin ",null,null,null,null,null,"0238625516-Amin "]
[null,"احمد سعد نعمان بكر ","0238624378-Ahmed ",null,null,null,null,null,"0238624378-Ahmed "]
[null,"…………………..","0238623011-Mahmoud ",null,null,null,null,null,"0238623011-Mahmoud "]
[null,"هانى محى الدين عبدالرحمن ","0238620062-Hany ","01005639410",null,null,null,null,"0238620062-Hany "]
[null,"محمد عبد الكريم عبد الفضيل ","0238624426-Mohammad","01146468924",null,null,null,null,"0238624426-Mohammad"]
[null,"……………..","0238625014-Ramy",null,null,null,null,null,"0238625014-Ramy"]
[null,"خضر محمد غيطان سليم ","0238620171-Khader","01111292289",null,null,null,null,"0238620171-Khader"]
[null,"علي كامل عبد الكريم","0238626566-Karim ","01140620618",null,null,null,null,"0238626566-Karim "]
[null,"سعيد سيد ابراهيم عبد الباقى ","0238624056-Said ","01116778804",null,null,null,null,"0238624056-Said "]
[null,"نهلة سمير حسن محمد ","0238620055-Nahla ","01014783118",null,null,null,null,"0238620055-Nahla "]
[null,"سليم فريج عياد محيسن","0238620434-Salim ","01146430907",null,null,null,null,"0238620434-Salim "]
[null,"ا/كامل عبد الكريم","0238631000-Kamal",null,null,null,null,null,"0238631000-Kamal"]
[null,"محمد عبدالحكيم محمد عامر","0238620435-Mohammed ","01124572123",null,null,null,null,"0238620435-Mohammed "]
[null,"محمود سعيد محمود ابراهيم","0238620406-Mahmoud ","01003397870",null,null,null,null,"0238620406-Mahmoud "]
[null,"محمد مطير سلامه سلمى","0238620090-Mohammed ","01119275723",null,null,null,null,"0238620090-Mohammed "]
[null,"ايمان محمد عبدالرحمن بكر","0238622002-Eman ",null,null,null,null,null,"0238622002-Eman "]
[null,"عبدالله محمد عبد الطيف","0238623140-Abdullah ","01068474154",null,null,null,null,"0238623140-Abdullah "]
[null,"نبيل على عبد الواحد","0227048421-Nabil",null,null,null,null,null,"0227048421-Nabil"]
[null,"رجب امين محمد على","0238015133-Rajab ",null,null,null,null,null,"0238015133-Rajab "]
[null,"هدى فتحى على امام","0238620756-Huda ",null,null,null,null,null,"0238620756-Huda "]
[null,"عمر محمد سيد عبد الغفار","0238620855-Omar","01118440785",null,null,null,null,"0238620855-Omar"]
[null,"كريمه امين عبد الخالق عبد البر","0238624839-Karima","01098921911","ADSL1M","2013-12-22",145,"2014-11-30","0238624839-Karima"]
[null,"هانى خليل ابراهيم سعد","0238622124-Hany ",null,null,null,null,null,"0238622124-Hany "]
[null,"…………….","0238624870-Mohammed ",null,null,null,null,null,"0238624870-Mohammed "]
[null,"………………","0238626597-Salem ",null,null,null,null,null,"0238626597-Salem "]
[null,"رمضان احمد سعد محمد","0238180924-Ramadan ",null,null,null,null,null,"0238180924-Ramadan "]
[null,"عيدكمال محمد حسين","0238411700-Aidkamal ",null,null,null,null,null,"0238411700-Aidkamal "]
[null,"هالة فتحى شعبان حسن ابوطالب","0238620065-Hala",null,null,null,null,null,"0238620065-Hala"]
[null,"ناصر محمد بشير محمد شنب","0238624122-Nasser",null,null,null,null,null,"0238624122-Nasser"]
[null,"مصطفى محمد ابراهيم ماجد","0238620949-mustafa",null,null,null,null,null,"0238620949-mustafa"]
[null,"احمد عبدالمنعم على بكر","0238629229-ahmed","01141397824",null,null,null,null,"0238629229-ahmed"]
[null,"مخلص وليم جندى عبدالملك","0238621286-Savior","01119298329",null,null,null,null,"0238621286-Savior"]
[null,"شافعى عبد الله اسماعيل ابراهيم ","0238629614-Shafee","01150574758",null,null,null,null,"0238629614-Shafee"]
[null,"محمد حسني السيسي","0238016058-Salem","01142770975",null,null,null,null,"0238016058-Salem"]
[null,"عبدالعزيز ابراهيم احمد سلامة ","0238620736-Abd","01153853187","ADSL1M","2014-02-02",145,"2014-12-02","0238620736-Abd"]
[null,"رضا عبد المعبود خليل محمد","0238180033-Reda ",null,null,null,null,null,"0238180033-Reda "]
[null,"دسوقى محمود احمد محمد علام","0238621460-Desouqy ",null,null,null,null,null,"0238621460-Desouqy "]
[null,"شافعى عبد الله اسماعيل ابراهيم","0238629614-Shafee ",null,null,null,null,null,"0238629614-Shafee "]
[null,"خالد سالم حسين عوض","0238623100-Khaled","01142307594",null,null,null,null,"0238623100-Khaled"]
[null,"محمد صلاح محمد قطب","0238621515-Mohamed",null,null,null,null,null,"0238621515-Mohamed"]
[null,"كرم سامي ","0238628295-Karam ","01113217303",null,null,null,null,"0238628295-Karam "]
[null,"رشا منير","0238628788-Rasha","01025457779",null,null,null,null,"0238628788-Rasha"]
[null,"محمد سيد حسن ابراهيم ","0238628686-Mohamed ","01142269177",null,null,null,null,"0238628686-Mohamed "]
[null,"احلام ابراهيم احمد عنانى ","0238628384-Ahlam ","01273327710",null,null,null,null,"0238628384-Ahlam "]
[null,"حمدان محمد سليمان شاهين","0238624322-Hamdan ","01210852239",null,null,null,null,"0238624322-Hamdan "]
[null,"حسين شعيب حسين رسلان","0238628733-Hussein ","01284934754",null,null,null,null,"0238628733-Hussein "]
[null,"هاله عبدالرحمن على سيد","0238017500-ramada ","01119402070",null,null,null,null,"0238017500-ramada "]
[null,"رجب ابراهيم احمد سيد سلامه","0238630332-Rajab ","01113308059",null,null,null,null,"0238630332-Rajab "]
[null,"عاطف محمد عبدالوهاب خليفة","0238628674-Atef ","01111307390",null,null,null,null,"0238628674-Atef "]
[null,"امال محمد نور","0238628311-Amal ","01118047552",null,null,null,null,"0238628311-Amal "]
[null,"عبدالباسط عوض اللة على","0238015679-Mamed ",null,null,null,null,null,"0238015679-Mamed "]
[null,"عبير محمد يمانى عويس ","0238627696-Abeer","01112006836",null,null,null,null,"0238627696-Abeer"]
[null,"سمير طاهر الصادق","0238627425-Samir","01221234755",null,null,null,null,"0238627425-Samir"]
[null,"منى حسين عادل محمد حسين","0238628644-Mona","01273383397",null,null,null,null,"0238628644-Mona"]
[null,"محمد عبدالخالق احمد شمس الدين","0238416193-Mohammed ",null,null,null,null,null,"0238416193-Mohammed "]
[null," احمد عبدالمنعم على بكر","0238629229-ahmed ",null,null,null,null,null,"0238629229-ahmed "]
[null,"فتحى عبدالغنى احمد","0238620667-Fathy ",null,null,null,null,null,"0238620667-Fathy "]
[null,"محمد حسنى محمد سالم","0238016058-Salem ",null,null,null,null,null,"0238016058-Salem "]
[null,"احمد عاطف فهيم","0238627467-Ahmed","01111041940",null,null,null,null,"0238627467-Ahmed"]
[null," رامى بكرى حسنين عبدالجواد","0238620209-Ramy ",null,null,null,null,null,"0238620209-Ramy "]
[null," حسين شعيب حسين رسلان","0238628733-Hussein",null,null,null,null,null,"0238628733-Hussein"]
[null,"محمد حسن مسعد عبدالحليم","0238620024-Mohamed",null,null,null,null,null,"0238620024-Mohamed"]
[null," بلال عبد التواب محمد عباس","0238181492-Bilal ","01022724212",null,null,null,null,"0238181492-Bilal "]
[null,"هناء على محمود راشد","0238625070-Hana ","01114648113",null,null,null,null,"0238625070-Hana "]
[null," كرم سلامة سويلم خضير عطية","0238621514-Karam ",null,null,null,null,null,"0238621514-Karam "]
[null,"حليم فهيم جرجس عبدالسيد","0238625054-Halim","01007918686",null,null,null,null,"0238625054-Halim"]
[null," احمد رمضان احمد محمد","0238623611-Ahmed ","01114566567",null,null,null,null,"0238623611-Ahmed "]
[null,"اسلام ماهر سيد احمد","0223735771-Islam",null,null,null,null,null,"0223735771-Islam"]
[null,"سيد احمد عيسى","0225502666-Syed ",null,null,null,null,null,"0225502666-Syed "]
[null,"صفاء محمد نجيب قرنى عبدالمحسن","0238628293-Safaa ",null,null,null,null,null,"0238628293-Safaa "]
[null,"اشرف فوزى امين محمود عبد الجواد","0238624868-Ashraf ","01110840584",null,null,null,null,"0238624868-Ashraf "]
[null,"محمد صبرى محمد على جوده"," 0238628344-Mohamed ","01117036947",null,null,null,null," 0238628344-Mohamed "]
[null,"سيف","0225504337-Kausar ",null,null,null,null,null,"0225504337-Kausar "]
[null,"رئيسه عبدالمنعم ابراهيم سيد","0238625045-raisa ","01220226048",null,null,null,null,"0238625045-raisa "]
[null,"احمد سراج صف البلد","0238628755-Ahmed ","01207743535",null,null,null,null,"0238628755-Ahmed "]
[null,"خالد سيد نادى احمد ","0238624974-Khaled ","01062588080",null,null,null,null,"0238624974-Khaled "]
[null,"احمد زكريا عبد الظاهر محمود","0238620019-ahmed ","01119954379",null,null,null,null,"0238620019-ahmed "]
[null,"محمد سيد عبد الفتاح","0238620031-Mohamed ","01008318034",null,null,null,null,"0238620031-Mohamed "]
[null,"وائل رمضان ابراهيم ابو السعود ","0238625081-Wael ","01128566725",null,null,null,null,"0238625081-Wael "]
[null,"جهاد شعبان سالم","0238620059-Jihad","01027577641",null,null,null,null,"0238620059-Jihad"]
[null,"يسمين رزق ","0238620110-Yasmin","01116333818",null,null,null,null,"0238620110-Yasmin"]
[null,"محمود سيد امام السيد "," 0238625017-Mahmoud","01111083467",null,null,null,null," 0238625017-Mahmoud"]
[null,"منى محمود محمد مسلم ","0238620398-Mona","01015663154",null,null,null,null,"0238620398-Mona"]
[null,"محمد سامي عيد الكريم","0238624145-Mohammad ",null,null,null,null,null,"0238624145-Mohammad "]
[null,"كمال عبد الكريم","0238621111-Kamal","01227589888",null,null,null,null,"0238621111-Kamal"]
[null,"احمد محموداحمد داود ","0238620906-Ahmed ","01110371337",null,null,null,null,"0238620906-Ahmed "]
[null,25525844,"0225525844-Ashraf ","01117014811",null,null,null,null,"0225525844-Ashraf "]
[null,"محمود محمد ابراهيم عبدالمقصود ","0238628699-Mahmoud",null,null,null,null,null,"0238628699-Mahmoud"]
[null,"نعمات محمود عبدالرازق المهدلى ","0238620130-Nemat ",null,null,null,null,null,"0238620130-Nemat "]
[null,"عبدالغفار على سعد حسين ","0238624892-Abdul ",null,null,null,null,null,"0238624892-Abdul "]
[null,"عوض قرنى امام عوض ","0238624337-Awad ","01004737659",null,null,null,null,"0238624337-Awad "]
[null,null,"0238628888-Kamal",null,null,null,null,null,"0238628888-Kamal"]
[null,"محمد اسماعيل حامد اسماعيل","0238624771-Mohamed","01006963419",null,null,null,null,"0238624771-Mohamed"]
[null,"محمود محمد نجيب سيد عبد الباقى","0238621612-Mohamed ",null,null,null,null,null,"0238621612-Mohamed "]
[null,"ياسين محمد متولى ابراهيم","0238624086-Yassin ","01121570065",null,null,null,null,"0238624086-Yassin "]
[null,"احمد امين محمد امين","0238017044-Ahmed ","01001228392","ADSL1M","2014-11-12",110,"2014-12-11","0238017044-Ahmed "]
[null,"فاطمة ابراهيم محمد عيسى","0238623794-ahmed",null,null,null,null,null,"0238623794-ahmed"]
[null,"طارق محمد احمد على","0238625483-Tariq ","01117745792",null,null,null,null,"0238625483-Tariq "]
[null,"احمد حسين محمد رضوان غنيم","0238626907-Ahmed",null,null,null,null,null,"0238626907-Ahmed"]
[null,"مصطفى امام عبد الشافى مصطفى","0225505379-Mustafa ","01009941531",null,null,null,null,"0225505379-Mustafa "]
[null,"خالد عتريس عبد العليم","0225014441-Khaled ",null,null,null,null,null,"0225014441-Khaled "]
[null,"غطاس حنا بباوى سعد","0238628038-Ghattas ","01272650095",null,null,null,null,"0238628038-Ghattas "]
[null,"محمد عبد الرحمن محمد سيد احمد غوينم","0238621654-Mohammed ",null,null,null,null,null,"0238621654-Mohammed "]
[null,"عبدالرحمن محمد ادريس محمود","0223926068-Abd ","01222727725",null,null,null,null,"0223926068-Abd "]
[null,"مجمد سعيد سيد","0225116688-Sayed ","01223722099",null,null,null,null,"0225116688-Sayed "]
[null,"محمد غانم سلمان","0238621357-Mohammed","01003631883",null,null,null,null,"0238621357-Mohammed"]
[null,"حسن احمد حسن محمد","0238620069-Hassan ",null,null,null,null,null,"0238620069-Hassan "]
[null,null,"0238620139-ahmed ",null,null,null,null,null,"0238620139-ahmed "]
[null,"محمد عبد الرحيم مصطفي ","0225599065-Mohammed","01150370692",null,null,null,null,"0225599065-Mohammed"]
[null,"محمود محمد المرشدي","0227642255-Mahmoud ","01122499385",null,null,null,null,"0227642255-Mahmoud "]
[null,"رافت محمد صابر محمد","0238015166-elnour ","01149242979",null,null,null,null,"0238015166-elnour "]
[null,"نورا اسماعيل رحمه","0238626546-elnour","01002286533","ADSL1M","2014-12-17",110,"2014-12-17","0238626645-elnour "]
[null,"ابراهيم مسلم سليمان","0238620372-elnour","01008253908",null,null,null,null,"0238620372-elnour"]
[null,"رضا سعيد","0238627302-Rida ",null,null,null,null,null,"0238627302-Rida "]
[null,"ناصر شراره","0238628101-elnour",null,null,null,null,null,"0238628101-elnour"]
[null,"محمد الخشن","0238620012-elnour","01140680152","ADSL512","2014-11-02",72,"2014-02-12","0238620012-elnour"]
[null,null,"0238628789-Samira",null,null,null,null,null,"0238628789-Samira"]
[null,null,"0238630042-ahmed",null,null,null,null,null,"0238630042-ahmed"]
[null,"عبد الحمن محمد عباس","0238620907-elnour",null,null,null,null,null,"0238620907-elnour"]
[null,"ناصررحب سيد عويس حسن","0238621099-elnour",null,null,null,null,null,"0238621099-elnour"]
[null,"ربيع عيد زهير","0238622678-elnour",null,null,null,null,null,"0238622678-elnour"]
[null,"عادل لطفي","0238621067-elnour","01063107018",null,null,null,null,"0238621067-elnour"]
[null,"فصوات حسين ابراهيم","0223739864-elnour","01226540877",null,null,null,null,"0223739864-elnour"]
[null,"فرج فتحي فرج","0223740244-elnour","01002743275",null,null,null,null,"0223740244-elnour"]
[null,"مبراند جرجس عوض","0223735912-","01067377858",null,null,null,null,"0223735912-"]
[null,"فاخري امين مخأيل","0223712058-elnour","01225436640",null,null,null,null,"0223712058-elnour"]
[null,"حامد سند عبد الطيف","0223739900-elnour","01116090217",null,null,null,null,"0223739900-elnour"]
[null,"نهله نصر محمد ","0223714935-elnour","01117517273",null,null,null,null,"0223714935-elnour"]
[null,"محمد علي بكر","0238621987-elnour","01122799780","ADSL1M","2014-12-05",73,"2014-12-17","0238621987-elnour"]
[null,"اشرف محمد محمد","0238622136-elnour","01090707184",null,null,null,null,"0238622136-elnour"]
[null,"عياد علي محمود طلبه ","0238410214-elnour","01009078155",null,null,null,null,"0238410214-elnour"]
[null,"عبد السلام محمود عبد السلام","0238622055-elnour","01278544421","ADSL1M","2014-12-05",73,"2014-12-17","0238622055-elnour"]
[null,"هادعياد علي محمود طلبه ","0238411841-elnour","01009078155",null,null,null,null,"0238411841-elnour"]
[null,"اسماعيل امين مرزوق","0225545035-elnour","01128134600",null,null,null,null,"0225545035-elnour"]
[null,"مصطفي محمد عبد الستار","0238621823-elnour",null,null,null,null,null,"0238621823-elnour"]
[null,"كريمه امين عبد الخالق عبد 2","0238626025-elnour",null,null,null,null,null,"0238626025-elnour"]
[null,"عباس بدوي ابو طلبه","0238621075-elnour","01141061057","adsl","2014-12-08",48,"2014-12-18","0238621075-elnour"]
[null,"فرج احمد علي ريا","0238016511-elnour",null,null,null,null,null,"0238016511-elnour"]
[null,null,"0238630300-elnour",null,null,null,null,null,"0238630300-elnour"]
[null,"زوزو علي صالح","0238621175-elnour","01008563226",null,null,null,null,"0238621175-elnour"]
[null,"محمود حسن سليمان ","0238412473-elnour","01022673828",null,null,null,null,"0238412473-elnour"]
[null,"كرم عياد علي ","0238412054-elnour",null,null,null,null,null,"0238412054-elnour"]
[null,"فريح خضر سويلم مسلم","0238620835-Freih","01150505410",null,null,null,null,"0238620835-Freih"]
[null,null,"0238621821-elnour",null,null,null,null,null,"0238621821-elnour"]
[null,"طه عبد الرزق","0225510164-elnour",null,null,null,null,null,"0225510164-elnour"]
[null,null,"0238625281-elnour",null,null,null,null,null,"0238625281-elnour"]
[null,"كريم فريد عبد الحميد","38625824","01141588145","ADSL1M","2014-12-07",73,null,111]
[null,"احمد عبد الفتاح سعد عبد الفتاح رزق ","38629222","01144105050","ADSL1M","2014-12-17",73,null,"0238629222-ahmedrezk"]
[null,"ايمن ترجم سالم اسماعيل","0238623603","01017051567","ADSL1M","2014-12-17",73,null,"0238623603-elnour"]
[null,"داود عوض الله برسوم","38413957","01281199828","ADSL1M","2014-12-17",73,null,"0238413957-elnour"]
[null,"محمد سيد سيد","0238620701",null,"adsl1m","2014-10-31",110,"2014-11-07","0238620701-elnour"]
[null,"محمد سيد عبد الحليم","0238622007","01015647979","ADSL1M","2014-12-18",73,null,"0238622007-elnour"]

{"sheet":"تقرير","index":6,"n_rows":14,"n_cols":9,"rows_kept":14,"cut":false,"hidden":true,"merged":[[0,2,0,7]]}
[null,null,"تقرير عن فترة خدمه كل مشترك"]
[null,null,"اسم المشترك","الرقم الارضى","رقم المحمول","نوع الخدمه المقدمه","تاريخ بداية الخدمه","تاريخ انتهاء الخدمه"]
[null,null,"عبد الله سيد عبد الحليم حسين رزق ","0238627177-Syed","01002491550","ADSL4M","2014-12-01","2014-12-31"]
[null,null,"تمام سيد احمد حسن ","0238620616-Tammam ","01278804664","ADSL512","2014-12-02","2015-01-01"]
[null,null,"كريمه امين عبد الخالق عبد البر","0238624839-Karima","01098921911","ADSL1M","2014-11-30","2014-12-30"]
[null,null,"احمد امين محمد امين","0238017044-Ahmed ","01001228392","ADSL1M","2014-12-11","2015-01-10"]
[null,null,"محمد الخشن","0238620012-elnour","01140680152","ADSL512","2014-12-02","2015-01-01",1]
[null,null,"احمد محمد رشاد ابراهيم ","0238624364-Ahmed ","01228083559","ADSL","2014-11-30","2014-12-30",1]
[null,null,"ياسرمحمد جاد المولي","0238622146-Yasser","01228535990","ADSL1M","2014-12-04","2015-01-03",1]
[null,null,"علاء محمد ياسين معبد ","0238625000-Alaa ","01159159411","ADSL1M","2014-12-07","2015-01-06",1]
[null,null,"محمد سيد سيد","38620701",0,"adsl1m","2014-11-07","2014-12-07",1]
[null,null,"عبدالعزيز ابراهيم احمد سلامة ","0238620736-Abd","01153853187","ADSL1M","2014-12-02","2015-01-01",1]
[null,null,"محمد عيد محمد فيصل ","0238627511-Mohamed","01145295264","adsl512","2014-12-19","2015-01-18",1]
[null,null,null,null,null,null,null,null,1]